Cogmind - Beta 13 @@@ ROGUE MODE // 2024.06.10 @ 20:14:21 Player: Spoodle Result: Core destroyed Performance ------------- Evolutions (4) 2000 Regions Visited (9) 1800 Robots Destroyed (169) 845 Value Destroyed (5902) 5902 Prototype IDs (16) 320 Alien Tech Used (0) 0 Bonus (666) 666 TOTAL SCORE: 11533 Bonus ------- High Alert Combat Kills 127 Follower Combat Kills 265 Met Zhirov 300 Friendly Fire -26 Cogmind --------- Core Integrity 0/850 Matter 300/300 Energy 100/100 System Corruption 1% Temperature Cool (0) Movement Core (350) Ox6 Location -6/Archives Parts ------- > --- POWER (1) -------- (None) > --- PROPULSION (3) --- (None) > --- UTILITY (9) ------ Large Storage Unit Advanced Signal Interpreter Advanced Terrain Scan Processor Targeting Computer Core Analyzer Armor Integrity Analyzer > --- WEAPON (2) ------- (None) > --- INVENTORY (15) --- Advanced Heat Sink Advanced Heat Sink Advanced Heat Sink Structural Scanner Centrium Medium Armor Plating Centrium Medium Armor Plating EM Disruption Field Improved System Restoration Module Advanced Variable Charge Gun Advanced Variable Charge Gun Phase Cannon Phase Cannon Heavy Rocket Launcher Plasma Cutter Peak State ------------ > --- POWER ------------ Fission Core > --- PROPULSION ------- Armored Treads Advanced Treads > --- UTILITY ---------- Advanced Heat Sink Large Storage Unit Advanced Signal Interpreter Advanced Terrain Scan Processor Core Analyzer Armor Integrity Analyzer Centrium Medium Armor Plating Hacking Suite Hacking Suite > --- WEAPON ----------- Phase Cannon Heavy Rocket Launcher > --- INVENTORY -------- Light Angular Momentum Engine Advanced Heat Sink Advanced Heat Sink Structural Scanner Improved Sensor Array Advanced Terrain Scanner Centrium Medium Armor Plating EM Disruption Field Improved System Restoration Module Plasma Cannon Heavy Ion Cannon Phase Cannon Phase Cannon Plasma Cutter [Rating: 64] Favorites ----------- Power Improved Deuterium Engine Engine Improved Deuterium Engine Power Core Fission Core Propulsion Light Treads Treads Light Treads Leg Aluminum Leg Utility Large Storage Unit Device Structural Scanner Storage Large Storage Unit Processor Targeting Computer Hackware Hacking Suite Protection Hardened Medium Armor Plating Weapon Advanced Beam Cannon Energy Gun Improved Medium Laser Energy Cannon Advanced Beam Cannon Ballistic Gun Improved Assault Rifle Launcher Heavy Rocket Launcher Special Weapon Plasma Cutter Build | -11 -10 -9 -9 -8 -7 -6 -6 -6 -6 ------- Run | Yrd Mat Mat Sto Mat Fac Fac Ext Cet Arc Slots Evolved 8 | . . 2 . 2 2 2 . . . Power . | . . . . . . . . . . Propulsion 1 | . . . . . 1 . . . . Utility 7 | . . 2 . 2 1 2 . . . Weapon . | . . . . . . . . . . Parts Attached 242 | 8 18 35 18 32 42 37 31 20 1 Power 26 | 1 4 8 3 1 3 1 1 3 1 Engine 24 | 1 4 8 3 1 3 1 1 1 1 Core 2 | . . . . . . . . 2 . Reactor . | . . . . . . . . . . Propulsion 32 | 2 3 6 3 5 4 4 3 2 . Treads 28 | . 2 6 3 5 4 4 3 1 . Leg 4 | 2 1 . . . . . . 1 . Wheel . | . . . . . . . . . . Hover . | . . . . . . . . . . Flight . | . . . . . . . . . . Utility 114 | 2 4 7 3 19 27 28 16 8 . Device 76 | 1 2 6 2 13 17 20 11 4 . Storage 5 | 1 2 . . . 1 . 1 . . Processor 11 | . . 1 . 2 3 2 1 2 . Hackware 2 | . . . . . . 1 1 . . Protection 20 | . . . 1 4 6 5 2 2 . Artifact . | . . . . . . . . . . Weapon 70 | 3 7 14 9 7 8 4 11 7 . Energy Gun 15 | 1 2 2 2 . 4 1 3 . . Energy Cannon 20 | . . . 3 3 3 2 5 4 . Ballistic Gun 19 | 2 3 8 4 1 . . 1 . . Ballistic Cannon . | . . . . . . . . . . Launcher 15 | . 2 4 . 3 1 1 2 2 . Special Weapon 1 | . . . . . . . . 1 . Impact Weapon . | . . . . . . . . . . Slashing Weapon . | . . . . . . . . . . Piercing Weapon . | . . . . . . . . . . Special Melee Weapon . | . . . . . . . . . . Unidentified Prototypes 5 | . . 2 1 . . 1 . 1 . Parts Lost 30 | . 1 2 1 2 2 1 4 8 9 Power 6 | . 1 1 . . . . . 2 2 Propulsion 7 | . . 1 . . . . 1 3 2 Utility 13 | . . . 1 2 1 1 2 3 3 Weapon 4 | . . . . . 1 . 1 . 2 Highest Loss Streak 9 | . 1 1 1 1 2 1 2 7 9 To Critical Strikes . | . . . . . . . . . . Average Slot Usage (%) 99 | . 99 99 99 99 99 99 99 92 93 Engine 8 | . 13 10 11 9 7 6 6 . . Treads 19 | . 17 22 22 18 23 20 20 12 6 Leg 1 | . 10 . . . . . . . 6 Device 18 | . 14 21 18 19 22 18 15 12 13 Storage 9 | . 14 11 11 9 7 6 6 6 6 Processor 16 | . . 11 11 17 23 26 23 27 33 Hackware 2 | . . . . . . 5 8 11 6 Protection 2 | . . . 2 7 . . 4 . . Energy Gun 6 | . 20 2 8 . 7 4 1 . . Energy Cannon 4 | . . . . 8 6 7 10 9 13 Ballistic Gun 7 | . 6 19 13 9 . . . . . Naked Turns . | . . . . . . . . . . Heaviest Build 58 | 13 51 35 44 47 46 48 58 53 48 Greatest Support 80 | 20 40 42 42 42 70 80 80 62 15 Greatest Overweight (x) 3 | . 1 . 1 1 . . . 3 3 Average Overweight (x) . | . . . . . . . . . 3 Largest Inventory Capacity 20 | 8 20 15 15 15 15 15 15 15 15 Average Capacity 14 | 7 14 15 15 15 15 15 15 15 15 Most Carried 17 | 7 17 15 15 15 15 15 15 15 15 Average Carried 14 | 5 10 14 14 14 14 14 14 14 14 Final Capacity 15 | 8 15 15 15 15 15 15 15 15 15 Final Carried 15 | 7 15 15 15 15 15 15 15 15 14 Class Distribution -------------------- 35% | Mutant 27% | Scavenger-Mutant 18% | Scavenger-Skirmisher 9% | Skirmisher 4% | Hacker-Skirmisher Dominant Class ---------------- Mutant | -10/Materials Scavenger-Mutant | -9/Materials Mutant | -9/Storage Scavenger-Mutant | -8/Materials Scavenger-Skirmisher | -7/Factory Scavenger-Skirmisher | -6/Factory Scavenger-Mutant | -6/Extension Hacker-Skirmisher | -6/Cetus Skirmisher | -6/Archives Resources | -11 -10 -9 -9 -8 -7 -6 -6 -6 -6 ----------- Run | Yrd Mat Mat Sto Mat Fac Fac Ext Cet Arc Matter Collected 4028 | 304 418 756 493 598 372 397 475 215 . Remotely . | . . . . . . . . . . Salvage Created 6140 | 99 540 1078 800 1109 349 675 1053 437 . Parts 373 | 4 46 80 43 65 26 45 46 18 . Haulers Intercepted 6 | . 2 3 . 1 . . . . . Recyclers Shooed 5 | 1 . . 1 . . 2 1 . . Parts Field Recycled . | . . . . . . . . . . Retrieved Matter . | . . . . . . . . . . Parts Self-Destructed . | . . . . . . . . . . Prevented . | . . . . . . . . . . Kills | -11 -10 -9 -9 -8 -7 -6 -6 -6 -6 ------- Run | Yrd Mat Mat Sto Mat Fac Fac Ext Cet Arc Combat Hostiles Destroyed 125 | . 13 26 17 23 8 10 17 11 . Guns 60 | . 7 18 17 10 4 2 2 . . Cannons 31 | . . . . 8 2 5 11 5 . AOE 30 | . 6 8 . 5 2 3 . 6 . Classes Destroyed 14 | 2 6 2 . 1 1 1 1 . . Worker 7 | . 2 2 . . . 3 . . . Builder 5 | . . 1 . 1 . 2 1 . . Tunneler 7 | 1 . . . 2 2 2 . . . Hauler 6 | . 2 3 . 1 . . . . . Recycler 2 | 1 . . 1 . . . . . . Mechanic 1 | . 1 . . . . . . . . Watcher 16 | . 3 3 2 3 1 2 1 1 . Swarmer 31 | . 5 8 3 5 4 3 . 3 . Grunt 61 | . 8 12 8 15 . 3 12 3 . Brawler 2 | . . . . 1 . . . 1 . Duelist 1 | . . . . . . . 1 . . Sentry 18 | . . 6 6 2 2 . 2 . . Hunter 5 | . . . . . . 3 2 . . Programmer 3 | . . . . . 2 1 . . . Cetus Guard 4 | . . . . . . . . 4 . Best Kill Streak 7 | 1 4 6 4 3 4 6 2 7 . Combat Bots Only 7 | . 3 6 3 3 4 3 2 7 . Max Kills in Single Turn 5 | 1 4 3 2 3 2 5 1 2 . Gunslinging . | . . . . . . . . . . Exploded 3 | . 2 3 . 3 2 3 . 2 . Melee . | . . . . . . . . . . Uniques/NPCs Destroyed . | . . . . . . . . . . Combat | -11 -10 -9 -9 -8 -7 -6 -6 -6 -6 -------- Run | Yrd Mat Mat Sto Mat Fac Fac Ext Cet Arc Hostile Shots Fired 791 | . 42 78 67 123 163 91 115 88 24 Missed 280 | . 11 18 18 37 72 32 49 33 10 Damage Taken 8337 | . 393 760 618 1077 895 851 1362 1468 913 Core 1488 | . 79 154 51 186 144 89 270 175 340 Absorbed by Shields . | . . . . . . . . . . Ignored by Resistances 33 | . . . . . 33 . . . . Core Remaining (%) 72 | 100 68 . 48 66 79 . . . . Volleys Fired 415 | 8 46 56 66 80 31 36 61 31 . Largest 2 | 2 2 2 2 2 2 2 2 2 . Hottest 165 | 70 106 76 112 91 131 143 165 150 . Shots Fired 783 | 16 88 104 129 147 60 71 118 50 . Gun 496 | 16 84 98 126 78 31 35 28 . . Cannon 261 | . . . 3 65 28 35 84 46 . Launcher 26 | . 4 6 . 4 1 1 6 4 . Special . | . . . . . . . . . . Kinetic 312 | 8 24 92 96 76 . . 16 . . Thermal 444 | 8 60 6 33 67 59 70 95 46 . Explosive 26 | . 4 6 . 4 1 1 6 4 . Electromagnetic 1 | . . . . . . . 1 . . Robot Hit Streak 38 | 4 12 12 12 15 8 12 38 6 . Robot Miss Streak 8 | 2 3 3 4 3 2 8 4 2 . Penetration Max . | . . . . . . . . . . Secondary Targets 2 | . 1 . 1 . . . . . . Max Gunslinging Chain 1 | . 1 . 1 . . . . . . Shots Hit Robots 534 | 9 59 73 91 109 36 40 80 37 . Core Hits 280 | 3 32 45 32 50 20 35 38 25 . Critical Kills 2 | . . . . 1 . 1 . . . Critical Parts Destroyed 1 | . . 1 . . . . . . . Critical Strikes 15 | 1 7 1 1 2 1 1 1 . . Burn 12 | 1 7 . 1 1 1 . 1 . . Meltdown 1 | . . . . . . 1 . . . Destroy 2 | . . 1 . 1 . . . . . Melee Attacks . | . . . . . . . . . . Impact . | . . . . . . . . . . Slashing . | . . . . . . . . . . Piercing . | . . . . . . . . . . Sneak Attacks . | . . . . . . . . . . Combat Hostiles . | . . . . . . . . . . Follow-up Attacks . | . . . . . . . . . . Damage Inflicted 13459 | 114 1308 1819 1435 2289 835 1405 2279 1975 . Guns 5634 | 114 742 1060 1429 950 385 478 476 . . Cannons 4503 | . . . . 942 333 460 1748 1020 . Explosions 3295 | . 566 755 . 389 117 458 55 955 . Melee . | . . . . . . . . . . Ramming 27 | . . 4 6 8 . 9 . . . Kinetic 3399 | 50 171 1000 1056 917 . . 205 . . Thermal 6718 | 64 571 60 373 975 718 938 1999 1020 . Explosive 3082 | . 566 755 . 389 117 245 55 955 . Electromagnetic 233 | . . . . . . 213 20 . . Impact . | . . . . . . . . . . Slashing . | . . . . . . . . . . Piercing . | . . . . . . . . . . Highest Corruption 4 | . . . 2 2 4 . 1 1 1 Average Corruption 1 | . . . 2 2 3 . 1 1 1 Corruption Purged . | . . . . . . . . . . Corruption Blocked . | . . . . . . . . . . Effects 48 | . . . . 15 23 . 4 5 1 Message Errors 14 | . . . . 5 7 . . 2 . Matter Fused 7 | . . . . 2 2 . 1 2 . Heat Flow Errors 7 | . . . . 1 5 . 1 . . Energy Discharges 6 | . . . . 2 3 . . 1 . Parts Fused 1 | . . . . 1 . . . . . Data Loss (minor) 7 | . . . . 2 3 . 1 . 1 Data Loss (major) 1 | . . . . 1 . . . . . Misfires 4 | . . . . . 3 . 1 . . Weapon Failures 1 | . . . . 1 . . . . . Overload Shots . | . . . . . . . . . . Overflow Damage 213 | . 49 36 . 19 1 5 5 98 . Projectiles 50 | . . . . 9 1 4 5 31 . Explosions 163 | . 49 36 . 10 . 1 . 67 . Melee . | . . . . . . . . . . Knockbacks . | . . . . . . . . . . Impact . | . . . . . . . . . . Kinetic . | . . . . . . . . . . Secondary . | . . . . . . . . . . Self-Inflicted Damage 152 | . 47 50 . 17 . . 38 . . Shots 7 | . 2 3 . 1 . . 1 . . Rammed 6 | . . . 2 1 . 3 . . . Targets Rammed 7 | . . 1 2 1 . 3 . . . Kicked . | . . . . . . . . . . Crushed 1 | . . 1 . . . . . . . Highest Temperature 454 | 45 245 454 102 270 259 201 261 186 . Average Temperature 62 | 19 67 111 21 88 70 64 53 58 . Received Heat Transfer 2127 | . 186 246 273 504 144 153 378 243 . Siege Activations . | . . . . . . . . . . Robots Corrupted . | . . . . . . . . . . Combat Hostiles . | . . . . . . . . . . Parts Fried . | . . . . . . . . . . Impact Corruptions . | . . . . . . . . . . Robots Melted 5 | . . . . . . 1 4 . . Combat Hostiles 4 | . . . . . . . 4 . . Parts Melted 27 | . 5 . 1 1 7 7 4 2 . Heat Transferred 12756 | 259 2109 148 888 1850 1443 1610 3141 1308 . Parts Sabotaged . | . . . . . . . . . . Parts Stolen . | . . . . . . . . . . Parts Stripped . | . . . . . . . . . . Power Chain Reactions 3 | . . . . . . 3 . . . Alert | -11 -10 -9 -9 -8 -7 -6 -6 -6 -6 ------- Run | Yrd Mat Mat Sto Mat Fac Fac Ext Cet Arc Peak Influence 533 | 10 200 475 365 407 157 533 307 174 9 Initial 143 | . 6 . 143 52 100 14 114 131 9 Average 171 | 3 56 230 233 220 72 311 171 24 8 Maximum Alert Level 2 | . 1 2 1 2 . 2 1 . . Low Security (%) 61 | 100 97 37 37 42 100 33 65 100 100 Level 1 31 | . 2 53 62 57 . 9 34 . . Level 2 7 | . . 8 . . . 57 . . . Level 3 . | . . . . . . . . . . Level 4 . | . . . . . . . . . . Level 5 . | . . . . . . . . . . High Security . | . . . . . . . . . . Max Security . | . . . . . . . . . . Squads Dispatched 13 | . 2 1 2 3 1 2 2 . . Investigation 2 | . 1 . 1 . . . . . . Extermination 2 | . . . . . 1 1 . . . Reinforcement 9 | . 1 1 1 3 . 1 2 . . Assault . | . . . . . . . . . . Garrison . | . . . . . . . . . . Intercept . | . . . . . . . . . . Searches Triggered . | . . . . . . . . . . Construction Impeded 2 | . . . . 1 . 1 . . . Haulers Reinforced . | . . . . . . . . . . Active Scanning Responses . | . . . . . . . . . . Cargo Convoy Interrupts . | . . . . . . . . . . Stealth | -11 -10 -9 -9 -8 -7 -6 -6 -6 -6 --------- Run | Yrd Mat Mat Sto Mat Fac Fac Ext Cet Arc Distress Signals 14 | . 3 3 1 1 1 . 2 1 2 Communications Jammed . | . . . . . . . . . . Distress Signals . | . . . . . . . . . . Times Spotted 195 | . 22 37 23 35 12 15 30 13 8 Peak Tracking Total 12 | . 5 6 3 7 4 5 4 7 12 Tactical Retreats 7 | . . 2 1 2 . . 2 . . Traps | -11 -10 -9 -9 -8 -7 -6 -6 -6 -6 ------- Run | Yrd Mat Mat Sto Mat Fac Fac Ext Cet Arc Traps Triggered 7 | . 2 1 1 1 2 . . . . Indirectly . | . . . . . . . . . . Trap Hack Attempts . | . . . . . . . . . . Triggered . | . . . . . . . . . . Disarmed . | . . . . . . . . . . Reprogrammed . | . . . . . . . . . . Reused . | . . . . . . . . . . Traps Extracted . | . . . . . . . . . . Installed . | . . . . . . . . . . Triggered . | . . . . . . . . . . Machines | -11 -10 -9 -9 -8 -7 -6 -6 -6 -6 ---------- Run | Yrd Mat Mat Sto Mat Fac Fac Ext Cet Arc Machines Disabled 37 | . 2 1 3 4 . 23 1 3 . Max in Single Turn 11 | . 1 1 1 1 . 11 1 2 . Garrison Access 1 | . . . . . . 1 . . . Machines Repaired . | . . . . . . . . . . Machines Dismantled 3 | . . . . . . . . 3 . Machines Sabotaged . | . . . . . . . . . . Overloaded Fab Kills . | . . . . . . . . . . Hacking | -11 -10 -9 -9 -8 -7 -6 -6 -6 -6 --------- Run | Yrd Mat Mat Sto Mat Fac Fac Ext Cet Arc Machines Accessed 37 | . 5 6 9 3 3 4 4 3 . Terminals 35 | . 5 6 9 3 2 3 4 3 . Fabricators 1 | . . . . . 1 . . . . Repair Stations . | . . . . . . . . . . Recycling Units . | . . . . . . . . . . Scanalyzers . | . . . . . . . . . . Garrison Access 1 | . . . . . . 1 . . . Total Hacks 75 | . 6 15 20 7 5 7 9 6 . Successful 43 | . 5 7 9 6 3 5 6 2 . Failed 31 | . . 8 11 1 2 2 3 4 . Catastrophic 1 | . . . . . 1 . . . . Database Lockouts 1 | . 1 . . . . . . . . Manual 5 | . 2 1 1 . 1 . . . . Terminals 72 | . 6 15 20 7 4 5 9 6 . Fabricators 1 | . . . . . 1 . . . . Repair Stations . | . . . . . . . . . . Recycling Units . | . . . . . . . . . . Scanalyzers . | . . . . . . . . . . Garrison Access 2 | . . . . . . 2 . . . Terminal Hacks 42 | . 5 7 9 6 3 4 6 2 . Record 3 | . . . . . . . 1 2 . Robot Analysis 7 | . 1 . 2 1 1 . 2 . . Prototype ID Bank 6 | . 1 3 . . . 1 1 . . Open Door 4 | . . . 2 . . 1 1 . . Emergency Access Points 1 | . . . 1 . . . . . . Alert Level 9 | . 1 1 3 2 1 1 . . . Unreport Threat 3 | . . 1 . 1 . 1 . . . Locate Traps 5 | . 1 1 1 1 . . 1 . . Maintenance Status 1 | . . . . . 1 . . . . Transport Status 2 | . 1 1 . . . . . . . Hauler Manifests 1 | . . . . 1 . . . . . Fabricator Hacks . | . . . . . . . . . . Repair Station Hacks . | . . . . . . . . . . Recycling Unit Hacks . | . . . . . . . . . . Scanalyzer . | . . . . . . . . . . Garrison Access Hacks 1 | . . . . . . 1 . . . Seal Access 1 | . . . . . . 1 . . . Unauthorized Hacks . | . . . . . . . . . . Terminals . | . . . . . . . . . . Fabricators . | . . . . . . . . . . Repair Stations . | . . . . . . . . . . Recycling Units . | . . . . . . . . . . Scanalyzers . | . . . . . . . . . . Garrison Access . | . . . . . . . . . . Data Cores Recovered . | . . . . . . . . . . Used . | . . . . . . . . . . Hacking Detections 22 | . 3 5 5 . 2 2 3 2 . Full Trace Events 1 | . . . 1 . . . . . . Feedback Events . | . . . . . . . . . . Feedback Blocked . | . . . . . . . . . . Robot Schematics Acquired . | . . . . . . . . . . Robots Built . | . . . . . . . . . . Authchips . | . . . . . . . . . . Time . | . . . . . . . . . . Total Robot Build Rating . | . . . . . . . . . . Part Schematics Acquired . | . . . . . . . . . . Parts Built . | . . . . . . . . . . Authchips . | . . . . . . . . . . Time . | . . . . . . . . . . Total Part Build Rating . | . . . . . . . . . . Parts Repaired . | . . . . . . . . . . Time . | . . . . . . . . . . Parts Recycled . | . . . . . . . . . . Recycled Matter . | . . . . . . . . . . Retrieved Matter . | . . . . . . . . . . Retrieved Components . | . . . . . . . . . . Parts Scanalyzed . | . . . . . . . . . . Part Schematics Acquired . | . . . . . . . . . . Parts Damaged . | . . . . . . . . . . Bothacking | -11 -10 -9 -9 -8 -7 -6 -6 -6 -6 ------------ Run | Yrd Mat Mat Sto Mat Fac Fac Ext Cet Arc Used RIF Installer . | . . . . . . . . . . Robots Hacked . | . . . . . . . . . . Non-combat . | . . . . . . . . . . Combat . | . . . . . . . . . . Robot Hacks Applied . | . . . . . . . . . . Relay Couplers Released . | . . . . . . . . . . Fabnet Peak Effective % . | . . . . . . . . . . Robots Rewired 15 | . . . . . . . 15 . . Allies Hacked . | . . . . . . . . . . Hacks Repelled . | . . . . . . . . . . Allies | -11 -10 -9 -9 -8 -7 -6 -6 -6 -6 -------- Run | Yrd Mat Mat Sto Mat Fac Fac Ext Cet Arc Total Allies 16 | . . . . . . . 16 . . Largest Group 8 | . . . . . . . 8 8 . Highest-Rated Group 258 | . . . . . . . 258 258 . Highest-Rated Ally 39 | . . . . . . . 39 39 . Total Orders 5 | . . . 2 . . . 3 . . STAY 3 | . . . . . . . 3 . . EXPLORE 2 | . . . 2 . . . . . . Ally Attacks 89 | . . . . . . . 69 20 . Total Damage 1614 | . . . . . . . 1275 339 . Kills 8 | . . . . . . . 8 . . Allies Corrupted . | . . . . . . . . . . Allies Melted . | . . . . . . . . . . Intel | -11 -10 -9 -9 -8 -7 -6 -6 -6 -6 ------- Run | Yrd Mat Mat Sto Mat Fac Fac Ext Cet Arc Robot Analysis Total 7 | . 1 . 2 1 1 . 2 . . Derelict Logs Recovered . | . . . . . . . . . . Drone Launches 3 | . . . 3 . . . . . . Drone Recoveries 3 | . . . 3 . . . . . . Exploration | -11 -10 -9 -9 -8 -7 -6 -6 -6 -6 ------------- Run | Yrd Mat Mat Sto Mat Fac Fac Ext Cet Arc Turns Passed 12540 | 127 1611 1598 2106 1912 1395 1305 1449 913 124 Spaces Moved 5517 | 69 791 754 836 751 756 654 574 296 36 Core 4 | 4 . . . . . . . . . Treads 4977 | . 381 754 836 751 756 654 574 271 . Legs 536 | 65 410 . . . . . . 25 36 Wheels . | . . . . . . . . . . Hover . | . . . . . . . . . . Flight . | . . . . . . . . . . Fastest Speed 50 | 50 120 152 152 152 155 158 158 157 330 Average Speed 175 | 115 167 159 201 191 157 161 160 219 330 Slowest Speed 330 | 120 240 160 240 240 158 163 163 330 330 Overloaded Moves . | . . . . . . . . . . Propulsion Burnouts . | . . . . . . . . . . Robots Hopped . | . . . . . . . . . . Cave-ins Triggered 1 | . . . . . . . 1 . . Exploration Rate (%) 55 | 4 92 67 94 52 22 14 63 81 69 Regions Visited 9 Branch Regions 4 Pre-discovered Areas . | . . . . . . . . . . Known Exits Taken 4 | . . . . . 1 1 1 1 . Unknown Exits Taken 5 | 1 1 1 1 1 . . . . . Scrap Searched . | . . . . . . . . . . Spaces Dug 97 | . . . . . 1 . 96 . . Terrain Destroyed 248 | . 24 36 . 30 6 14 126 12 . Melee . | . . . . . . . . . . Projectile 17 | . . . . . 1 . 12 4 . AOE 231 | . 24 36 . 30 5 14 114 8 . Terrain Rammed . | . . . . . . . . . . Walls Destroyed . | . . . . . . . . . . Machines Disabled . | . . . . . . . . . . Actions | -11 -10 -9 -9 -8 -7 -6 -6 -6 -6 --------- Run | Yrd Mat Mat Sto Mat Fac Fac Ext Cet Arc Total 7509 | 97 991 1050 1136 1071 894 822 981 424 43 Wait 1008 | 2 104 165 192 187 28 71 224 29 6 Move 5507 | 68 790 753 835 750 755 653 572 295 36 Hop . | . . . . . . . . . . Pick Up 95 | 10 18 15 8 8 17 6 7 6 . Fast Attach 59 | 5 5 10 7 6 5 10 7 4 . Attach 24 | 2 . 4 . 3 5 2 3 4 1 Detach 1 | . . . . . . . 1 . . Swap 159 | 1 13 21 11 23 32 25 21 12 . Drop 122 | 1 15 25 15 13 21 16 13 3 . Fire 415 | 8 46 56 66 80 31 36 61 31 . Melee . | . . . . . . . . . . Ram . | . . . . . . . . . . Kick . | . . . . . . . . . . Crush 7 | . . 1 2 1 . 3 . . . Escape Stasis 1 | . . . . . . . 1 . . Rewire 71 | . . . . . . . 71 . . Trap . | . . . . . . . . . . Miscellaneous 40 | . . . . . . . . 40 . Route ------- -11/Scrapyard -10/Materials (discovered 4 exits: *Mat x3 / [*Min]) -9/Materials (discovered 3 exits: *Mat / [*Min] / *Sto) -9/Storage -8/Materials (discovered 2 exits: *Fac x2) -7/Factory -6/Factory (discovered 2 exits: [Low] / *Ext) -6/Extension (discovered 2 exits: *Fac / *Cet) -6/Cetus -6/Archives (discovered 1 exit: [*Hub]) History --------- Turn | Location | Event 6 | -11/Scrapyard | Discovered new exit (range 15) 128 | -11/Scrapyard | Entered Materials 315 | -10/Materials | Build established: Mutant 525 | -10/Materials | Discovered new exit (range 16) 534 | -10/Materials | Central database locked down 588 | -10/Materials | Discovered new exit (range 12) 726 | -10/Materials | Discovered new exit (range 6) 1621 | -10/Materials | Discovered new exit (range 7) 1739 | -10/Materials | Entered another Materials area 1739 | -9/Materials | Evolved 2 slots: Utility x2 2251 | -9/Materials | Discovered new exit (range 10) 2379 | -9/Materials | Discovered new exit (range 13) 2526 | -9/Materials | Discovered new exit (range 11) 2583 | -9/Materials | Build established: Scavenger-Mutant 3337 | -9/Materials | Entered Storage 3861 | -9/Storage | Core integrity fell below 50% 4236 | -9/Storage | Build established: Mutant 5361 | -9/Storage | Discovered new exit (range 16) 5443 | -9/Storage | Entered Materials 5443 | -8/Materials | Evolved 2 slots: Utility x2 5750 | -8/Materials | Build established: Scavenger-Skirmisher 6189 | -8/Materials | Build established: Scavenger-Mutant 6624 | -8/Materials | Discovered new exit (range 9) 7128 | -8/Materials | Discovered new exit (range 15) 7355 | -8/Materials | Entered Factory 7355 | -7/Factory | Evolved 2 slots: Propulsion x1, Utility x1 7650 | -7/Factory | Build established: Scavenger-Skirmisher 8721 | -7/Factory | Discovered new exit (range 8) 8748 | -7/Factory | Identified exit to Factory 8750 | -7/Factory | Entered another Factory area 8750 | -6/Factory | Evolved 2 slots: Utility x2 9259 | -6/Factory | Discovered new exit (range 10) 9270 | -6/Factory | Identified exit to Extension 9493 | -6/Factory | Discovered new exit (range 19) 10055 | -6/Factory | Entered Extension 10102 | -6/Extension | Build established: Skirmisher 10524 | -6/Extension | Build established: Mutant 10761 | -6/Extension | Lost 3 allies 10814 | -6/Extension | Crushed by falling debris 11204 | -6/Extension | Rescued a captive Derelict 11475 | -6/Extension | Discovered new exit (range 10) 11477 | -6/Extension | Discovered new exit (range 6) 11485 | -6/Extension | Identified exit to Cetus 11488 | -6/Extension | Identified exit to Factory 11504 | -6/Extension | Entered Cetus 11504 | -6/Cetus | Accompanied by 8 allies 11527 | -6/Cetus | Spotted Cetus Guard 11527 | -6/Cetus | Spotted Cetus Guard 11530 | -6/Cetus | Spotted Cetus Guard 11531 | -6/Cetus | Spotted Cetus Guard 11547 | -6/Cetus | Destroyed Cetus Guard 11557 | -6/Cetus | Destroyed Cetus Guard 11582 | -6/Cetus | Core integrity fell below 50% 11583 | -6/Cetus | Lost 8 allies 11583 | -6/Cetus | Destroyed Cetus Guard 11613 | -6/Cetus | Destroyed Cetus Guard 11619 | -6/Cetus | Lost 7 parts (2p2n3u) 11729 | -6/Cetus | Cetus Manufacturing Module disabled 11993 | -6/Cetus | Build established: Hacker-Skirmisher 12116 | -6/Cetus | Found a strange terminal 12313 | -6/Cetus | Destroyed 7 combat bots 12368 | -6/Cetus | Discovered new exit (range 16) 12414 | -6/Cetus | Identified exit to Archives 12417 | -6/Cetus | Entered Archives 12470 | -6/Archives | Met Zhirov 12476 | -6/Archives | Reinforcements dispatched to Archives 12486 | -6/Archives | Unable to access archive contents 12496 | -6/Archives | Discovered new exit (range 15) 12509 | -6/Archives | Build established: Skirmisher 12521 | -6/Archives | Reinforcements dispatched to Archives 12523 | -6/Archives | Zhirov warped through subspace 12541 | -6/Archives | Zhirov detonated Archives 12541 | -6/Archives | Core destroyed Last Messages --------------- way... explosives set to detonate, everyone out!" 12523_ Zhirov warps through subspace. 12523_ Svarog warps through subspace. 12523_ Slug penetrates Perun. 12524_ Perun warps through subspace. 12531_ I-36 Angel sends out distress signal. 12538_ Penetrated by Slug. 12538_ Fission Core destroyed. 12541_ I-36 Angel destroyed. 12541_ Arm. Treads destroyed. 12541_ Hvy. Ion Cannon destroyed. 12541_ Carbon-fiber Leg destroyed. 12541_ Archive Hub disabled. 12541_ O-32 Director destroyed. 12541_ Archive Terminal disabled. 12541_ Lgt. Angular Momentum Engine destroyed. 12541_ Imp. Sensor Array destroyed. 12541_ Phase Cannon destroyed. 12541_ Hacking Suite destroyed. 12541_ Adv. Terrain Scanner destroyed. Map ----- +----------------------------------------------------+ | #######?##?#####?#"""" # ?????????????????? | | ##?######?#######??""" /?? ???????????????? | | ???##?#?#########?"""" #? #??????????????? | | ####?####??#?#?###?"""" # ???#????????????? | | ####?#########?###?"""? # ?##????????????? | | ?#####?####?######""""" ? #??????????????? | | ?######??######?####"#"###=* ######?????????? | | ##################"""""" %[%="###?##????????? | | #?########?#######"""V""=[%=*" ###?#????????? | | ###########?##?###""" "" %=%[ #####?#???????? | | ###?###########?## " =[%=%"#####????????? | | ?################ Y!%[ "#####????????? | | ### =! """?""???????? | | ### """?#?????????? | | ### ""?"?""?????? | | #?#####+####### V"#""""?????? | | ### #"" "?""? ?????? | | ### #" "# ? ?????? | | ### """"" # ?????? | | ###"""""""""# #?#?#?????? | | ###"""""""""" % ?????? | | ###"""""""""# % ?? ????? | | ###""""""""" ???????? | | ####?####### ####????? | | ##########?# #?#?????? | | ##########?# @ ??#?#???? | | ?########?## ###?????? | | ########?#?## ??##????? | | ?##########?# ??##?????? | | #####?###?### ###??????? | | #?############ #####?????? | | ###?########## ##?#??????? | | ??#?########### #?#???????? | | ??######?###### ?##????????? | | ??##?########?### !% #?##????????? | | ????#?##?######### ##??#?????????? | | ?????####??####### < # ""####?##????????? | | ?????#??#?######## # """?##?????????????? | | ??????#??##?#?#?##########????#?????????????? | | ??????????????#?####?##?##??#?????#?????????? | | ????????????#####?##?##??#???###????????????? | | | | | | | | | | | | | | | | | | | +----------------------------------------------------+ Best States ------------- Heat Dissipation 75 Energy Generation 18 Energy Capacity 310 Matter Stores 300 Matter Capacity 300 Sight Range 16 Robot Scan Range 15 Terrain Scan Range 20 Terrain Scan Density 210 Armor Coverage 225 Resistance: EM 15 Power Shielding 66 Evasion (%) 55 Targeting Accuracy 6 Core Analysis 9 Armor Integrity Analysis 30 Recoil Reduction 3 Particle Charging 20 Offensive Hacking 20 Item Schematics ----------------- None Robot Schematics ------------------ None Fabricated ------------ Nothing Alien Tech Used ----------------- None Achievements -------------- None Challenges ------------ None Game ------ Seed CargoAssaultTerminator Manual? 0 Play Time 02:47:24 Cumulative 69.0 hours Start 2024.06.09 @ 17:11:32 End 2024.06.10 @ 20:14:21 Sessions 9 Manual Loads 0 Difficulty Rogue Special Mode None Game No. 42 Rogue 42 Adventurer 0 Explorer 0 Win Type - Total 0 Types 0/0/0/0/0/0/0/0/0 Lore% 45 Gallery% 49 Achievement% 35 Wizard Run 0 Options --------- Layout 0 ASCII 0 Keyboard 0 Movement Mouse Keybinds 0 Fullscreen 2 Font 18/SmallcapsGlow Map View 76x50 Zoom Use 0% Tactical HUD 1 Map Filters NONE Filters NONE Steam 1 RUN: 919266f1-7d35-438c-982a-5abaee0e785c